bitfinex-derivatives/quotes_SOLF0:USTF0_20240926
["timestamp","ask_amount","ask_price","bid_price","bid_amount"]
[1727370457967,24.39,157.71,157.58,24.39]
[1727370458164,24.39,157.73,157.6,24.39]
[1727370458368,24.39,157.76,157.63,24.39]
[1727370458571,24.39,157.76,157.64,2.6723]
[1727370458869,82.4745,157.83,157.7,3.1697]
[1727370458870,3.21739976,157.77,157.7,3.1697]
[1727370459070,24.39,157.78,157.66,24.39]
[1727370459674,3.13016867,157.77,157.66,24.39]
[1727370460074,3.1689,157.75,157.69,3.1699]
[1727370460375,3.1689,157.75,157.66,24.39]
[1727370460963,3.169,157.74,157.69,3.1698]
[1727370461167,3.169,157.74,157.66,24.39]
[1727370461673,3.169,157.74,157.69,3.1699]
[1727370462566,3.1691,157.73,157.69,3.1699]
[1727370463072,3.1696,157.71,157.66,24.39]
[1727370463263,24.39,157.74,157.64,4.0237]
[1727370463572,24.39,157.74,157.65,3.1706]
[1727370463766,3.1699,157.7,157.65,3.1706]
[1727370463974,27.59718321,157.74,157.64,2.6723]
[1727370464172,27.59718321,157.74,157.63,3.1711]
[1727370464371,24.39,157.71,157.6,24.39]
[1727370464561,24.39,157.71,157.62,3.1712]
[1727370464768,24.39,157.69,157.58,28.3401]
[1727370464969,24.39,157.69,157.58,3.9501]
[1727370465173,24.39,157.69,157.61,3.1715]
[1727370465374,24.39,157.69,157.58,3.9501]
[1727370465576,24.39,157.69,157.61,3.1715]
[1727370466073,3.18530308,157.68,157.58,3.9501]
[1727370466270,3.18530308,157.68,157.6,3.1716]
[1727370466478,76.12,157.89,157.6,24.39]
[1727370466666,24.39,157.78,157.68,3.1701]
[1727370466870,3.1689,157.75,157.66,24.39]
[1727370467070,24.39,157.8,157.67,1.2877]
[1727370467369,3.1688,157.75,157.67,2.5741]
[1727370467772,46.57903827,157.8,157.69,3.1698]
[1727370467975,3.1692,157.73,157.69,3.1698]
[1727370468782,3.169,157.74,157.7,3.1697]
[1727370469170,27.48903827,157.8,157.67,2.5741]
[1727370469375,0.96524131,157.79,157.68,24.39]
[1727370469674,3.09903827,157.8,157.68,24.39]
[1727370469878,3.1686,157.76,157.72,3.1692]
[1727370470476,3.16852778,157.8,157.71,3.1694]
[1727370470776,43.48,157.82,157.71,3.1694]
[1727370470970,0.96521983,157.81,157.71,3.1694]
[1727370471368,3.20023208,157.8,157.72,3.1693]
[1727370471774,3.1685,157.77,157.72,3.1693]
[1727370471975,43.48,157.82,157.68,25.7151]
[1727370472274,0.96520888,157.81,157.7,24.39]
[1727370472471,24.39,157.87,157.73,24.39]
[1727370472676,6.3317,157.9,157.74,1.2711]
[1727370472677,0.96498985,157.86,157.74,1.2711]
[1727370472872,0.96498985,157.85,157.76,24.39]
[1727370473078,27.60612845,157.88,157.79,3.1678]
[1727370473481,0.9648379,157.87,157.76,3.1685]
[1727370473682,24.39,157.86,157.75,1.3707]
[1727370473987,3.1673,157.82,157.77,3.1682]
[1727370474189,24.39,157.86,157.75,1.3707]
[1727370474486,0.96485162,157.85,157.75,1.3707]
[1727370474682,3.1675,157.82,157.77,3.1682]
[1727370475579,24.39,157.82,157.74,1.2711]
[1727370475979,3.1677,157.81,157.76,3.1685]
[1727370476381,3.1677,157.81,157.74,1.2711]
[1727370476985,24.39,157.82,157.74,1.2711]
[1727370477488,3.1681,157.79,157.74,1.2711]
[1727370477786,24.39,157.82,157.74,1.2711]
[1727370478385,24.39,157.78,157.69,1.2654]
[1727370478583,27.49202973,157.78,157.69,1.2654]
[1727370480388,24.39,157.75,157.65,1.2759]
[1727370480787,3.1703,157.68,157.65,1.2759]
[1727370481390,3.1705,157.67,157.65,1.2759]
[1727370481596,24.39,157.75,157.65,1.2759]
[1727370481794,3.1697,157.71,157.66,24.39]
[1727370481991,3.11094567,157.77,157.65,1.2759]
[1727370482180,30.7265,157.78,157.65,1.2759]
[1727370482181,24.39,157.76,157.65,1.2759]
[1727370482788,0.96555016,157.75,157.65,1.2759]
[1727370482987,3.1705,157.67,157.65,1.2759]
[1727370483191,24.39,157.76,157.65,1.2759]
[1727370483394,3.1705,157.66,157.65,1.2759]
[1727370484787,24.39,157.68,157.61,1.3797]
[1727370485795,3.1713,157.62,157.61,1.3797]
[1727370485995,24.39,157.68,157.61,1.3797]
[1727370486396,3.1713,157.62,157.61,1.3797]
[1727370486790,24.39,157.64,157.46,6.62530084]
[1727370486993,24.39,157.61,157.53,2.56]
[1727370487192,24.39,157.63,157.53,2.56]
[1727370487590,3.1723,157.58,157.53,2.56]
[1727370487790,24.39,157.63,157.53,2.56]
[1727370487997,3.1723,157.58,157.54,3.1728]
[1727370488298,24.39,157.63,157.53,2.56]
[1727370489096,24.39,157.66,157.54,1.3586]
[1727370489600,27.63952453,157.66,157.54,1.3586]
[1727370489793,24.39,157.66,157.55,24.39]
[1727370490192,3.1713,157.63,157.58,3.172]
[1727370490397,24.39,157.69,157.55,24.39]
[1727370490894,3.20954015,157.68,157.55,24.39]
[1727370491102,24.39,157.66,157.55,24.39]
[1727370491797,3.1719,157.6,157.55,24.39]
[1727370492199,24.39,157.66,157.55,24.39]
[1727370492697,24.39,157.66,157.54,1.3586]
[1727370493499,24.39,157.66,157.55,3.1727]
[1727370493695,24.39,157.64,157.54,1.3586]
[1727370493999,24.39,157.64,157.54,4.5314]
[1727370494299,24.39,157.64,157.54,1.3586]
[1727370495900,24.39,157.64,157.55,3.1727]
[1727370496203,24.39,157.66,157.54,1.3586]
[1727370496502,3.1721,157.59,157.55,3.1727]
[1727370496795,24.39,157.65,157.54,1.3586]
[1727370497193,3.172,157.59,157.55,3.1726]
[1727370497503,24.39,157.65,157.54,1.3586]
[1727370498003,3.1723,157.58,157.54,4.5314]
[1727370498599,3.1723,157.58,157.55,3.1728]
[1727370498799,24.39,157.65,157.54,1.3586]
[1727370498800,3.1724,157.57,157.54,1.3586]
[1727370499510,3.1724,157.57,157.54,4.5314]
[1727370499998,3.1724,157.57,157.55,3.1727]
[1727370500199,3.1724,157.57,157.54,1.3586]
[1727370500999,24.39,157.65,157.54,1.3586]
[1727370501204,70.23126702,157.7,157.58,24.39]
[1727370501400,70.23126702,157.7,157.6,3.1717]
[1727370501401,73.38063295,157.7,157.6,3.1717]
[1727370501604,70.23126702,157.7,157.61,24.39]
[1727370501899,70.23126702,157.7,157.61,30.78162038]
[1727370502200,70.23126702,157.7,157.62,2.6933]
[1727370502705,70.23126702,157.7,157.62,5.8646]
[1727370502901,70.23126702,157.7,157.62,2.6933]
[1727370503396,3.1711,157.63,157.62,2.6933]
[1727370503898,24.39,157.68,157.56,24.39]
[1727370504701,24.39,157.68,157.57,3.1723]
[1727370505411,24.39,157.68,157.56,27.5625]
[1727370505607,3.1721,157.59,157.56,27.5625]
[1727370505804,24.39,157.63,157.55,2.6752]
[1727370507409,3.1723,157.58,157.55,2.6752]
[1727370508811,3.1724,157.57,157.55,2.6752]
[1727370509206,24.39,157.63,157.55,2.6752]
[1727370509907,24.39,157.61,157.55,1.3636]
[1727370510114,24.39,157.61,157.48,24.39]
[1727370510313,3.1727,157.56,157.52,3.1734]
[1727370510612,24.39,157.61,157.52,3.10716059]
[1727370510809,24.39,157.61,157.48,24.39]
[1727370511112,24.39,157.61,157.52,3.1732]
[1727370511308,24.39,157.61,157.48,27.54539266]
[1727370511515,24.39,157.61,157.51,3.1734]
[1727370512716,3.1729,157.55,157.51,3.1734]
[1727370513017,24.39,157.61,157.52,3.1733]
[1727370513208,3.1725,157.57,157.47,24.39]
[1727370513515,24.39,157.61,157.53,3.173]
[1727370513904,3.1726,157.56,157.49,24.39]
[1727370514116,24.39,157.61,157.52,3.1733]
[1727370514311,24.39,157.61,157.49,3.17662313]
[1727370514516,24.39,157.61,157.51,3.1734]
[1727370514918,3.1728,157.55,157.51,3.1734]
[1727370515514,3.1728,157.55,157.52,3.1733]
[1727370516114,3.1726,157.56,157.52,3.1733]
[1727370516317,24.39,157.61,157.5,3.1905877]
[1727370516515,24.39,157.61,157.47,24.39]
[1727370516825,3.1728,157.55,157.47,27.5789992]
[1727370517214,3.1729,157.55,157.47,27.5789992]
[1727370518313,3.1729,157.55,157.52,3.1733]
[1727370518520,3.1726,157.56,157.47,27.5789992]
[1727370519022,3.1726,157.56,157.52,3.1732]
[1727370519222,3.1728,157.55,157.52,3.1732]
[1727370520720,24.39,157.61,157.52,3.1732]
[1727370520920,24.39,157.58,157.47,27.5789992]
[1727370521122,24.39,157.58,157.47,3.1889992]
[1727370521321,24.39,157.58,157.45,62.8324749]
[1727370521516,24.39,157.58,157.45,66.06980425]
[1727370521718,3.1727,157.56,157.45,66.06980425]
[1727370522019,3.1727,157.56,157.53,3.1731]
[1727370522522,3.1728,157.55,157.53,3.1731]
[1727370523219,3.1728,157.55,157.52,3.1732]
[1727370523813,3.173,157.54,157.51,3.1735]
[1727370524720,24.39,157.58,157.47,24.39]
[1727370525029,3.1728,157.55,157.47,24.39]
[1727370525324,24.39,157.61,157.51,3.1735]
[1727370525722,3.1731,157.54,157.51,3.1735]
[1727370526127,24.39,157.58,157.47,24.39]
[1727370526616,3.1733,157.53,157.5,3.1736]
[1727370526821,24.39,157.58,157.47,24.39]
[1727370527226,24.39,157.58,157.5,3.1738]
[1727370527423,24.39,157.58,157.47,24.39]
[1727370527722,6.3431,157.62,157.47,24.39]
[1727370527723,24.39,157.6,157.51,3.1734]
[1727370527928,3.173,157.54,157.47,24.39]
[1727370528422,3.173,157.54,157.51,3.1734]
[1727370529022,24.39,157.6,157.51,3.1734]
[1727370529218,3.1732,157.53,157.51,3.1734]
[1727370529424,24.39,157.58,157.5,3.1737]
[1727370529719,24.39,157.58,157.47,24.39]
[1727370530231,3.1733,157.53,157.5,3.1736]
[1727370530727,3.1733,157.53,157.51,3.1734]
[1727370530930,3.1733,157.53,157.47,24.39]
[1727370531126,3.1734,157.52,157.47,24.39]
[1727370531323,24.39,157.58,157.5,3.1736]
[1727370531724,3.1732,157.53,157.5,3.1736]
[1727370531925,24.39,157.56,157.45,66.06980425]
[1727370532226,24.39,157.6,157.45,66.06980425]
[1727370532227,24.39,157.58,157.47,24.39]
[1727370532427,24.39,157.58,157.51,3.1735]
[1727370532627,24.39,157.58,157.47,24.39]
[1727370533124,3.1731,157.54,157.51,3.1735]
[1727370533623,24.39,157.58,157.53,3.1731]
[1727370533829,24.39,157.58,157.47,24.39]
[1727370534129,24.39,157.6,157.47,24.39]
[1727370534319,15.24,157.63,157.53,15.24]
[1727370534523,15.24,157.63,157.54,3.21522984]
[1727370534726,3.1719,157.6,157.57,3.1722]
[1727370534927,15.24,157.68,157.45,66.06980425]
[1727370534928,15.24,157.65,157.55,15.24]
[1727370535129,15.24,157.65,157.55,18.42507714]
[1727370535429,3.1717,157.61,157.58,3.1721]
[1727370535628,15.24,157.67,157.58,15.24]
[1727370536130,15.24,157.65,157.56,15.24]
[1727370536435,3.1715,157.62,157.58,3.172]
[1727370536731,15.24,157.65,157.58,3.172]
[1727370537133,15.24,157.64,157.57,3.1723]
[1727370537634,15.24,157.64,157.56,15.24]
[1727370537828,15.24,157.62,157.53,3.8869]
[1727370538135,15.24,157.62,157.54,15.24]
[1727370538336,3.1717,157.61,157.57,3.1723]
[1727370539026,3.1718,157.6,157.57,3.1723]
[1727370539933,3.1716,157.61,157.57,3.1723]
[1727370540326,24.37,157.65,157.57,3.1723]
[1727370540533,3.1718,157.6,157.57,3.1723]
[1727370541036,3.172,157.59,157.56,3.1725]
[1727370541232,3.172,157.59,157.53,31.35701056]
[1727370541233,24.37,157.63,157.53,6.98701056]
[1727370541734,27.61149692,157.63,157.53,3.8869]
[1727370542040,27.61149692,157.63,157.53,7.04304427]
[1727370542534,3.1723,157.58,157.55,3.1726]
[1727370544427,3.1724,157.57,157.55,3.1726]
[1727370544630,3.1724,157.57,157.54,3.1729]
[1727370544938,24.37,157.61,157.48,24.37]
[1727370545240,24.37,157.61,157.55,3.1726]
[1727370545427,27.52876769,157.61,157.48,24.37]
[1727370546237,3.1727,157.56,157.53,3.1731]
[1727370547232,3.1727,157.56,157.54,3.173]
[1727370547540,3.1724,157.57,157.54,3.173]
[1727370547839,27.52876769,157.61,157.54,3.173]
[1727370549237,27.52876769,157.61,157.53,3.1731]
[1727370549638,3.1725,157.57,157.53,3.1731]
[1727370550637,3.1726,157.56,157.53,3.1731]
[1727370550838,24.37,157.58,157.52,3.1733]
[1727370551036,24.37,157.58,157.47,3.9447]
[1727370551236,3.1728,157.55,157.47,3.9447]
[1727370552042,3.1728,157.55,157.52,3.1732]
[1727370553247,24.37,157.58,157.52,3.1732]
[1727370554746,3.1729,157.55,157.52,3.1732]
[1727370556342,3.1726,157.56,157.53,3.1731]
[1727370556548,24.37,157.6,157.48,24.37]
[1727370557048,3.1725,157.57,157.54,3.1728]
[1727370557649,3.1726,157.56,157.54,3.1728]
[1727370558843,3.1724,157.57,157.55,3.1727]
[1727370559046,6.3404,157.68,157.56,15.24]
[1727370559351,15.24,157.67,157.57,15.24]
[1727370559950,15.24,157.67,157.6,3.1717]
[1727370560551,3.1713,157.63,157.59,3.1719]
[1727370561053,3.1713,157.63,157.58,3.11260277]
[1727370561448,3.1713,157.63,157.6,3.1716]
[1727370562143,3.1709,157.65,157.58,3.11260277]
[1727370562349,70.23126702,157.7,157.62,15.24]
[1727370562551,15.24,157.73,157.64,15.24]
[1727370562850,15.24,157.75,157.66,15.24]
[1727370563147,0.96570485,157.74,157.64,15.24]
[1727370563453,15.24,157.73,157.64,15.24]
[1727370563749,3.1696,157.71,157.68,3.1701]
[1727370564050,15.24,157.75,157.66,15.24]
[1727370564250,3.1694,157.72,157.66,15.24]
[1727370564446,15.24,157.75,157.66,15.24]
[1727370564946,3.1693,157.73,157.68,3.1701]
[1727370565350,15.24,157.73,157.63,2.629]
[1727370565553,3.17,157.69,157.65,3.1706]
[1727370566252,3.17,157.69,157.65,6.29081313]
[1727370567150,3.1704,157.67,157.64,3.1709]
[1727370567351,15.24,157.69,157.63,2.629]
[1727370567651,15.24,157.69,157.63,5.8001]
[1727370567652,3.1705,157.67,157.63,5.8001]
[1727370567852,15.24,157.69,157.63,2.629]
[1727370568257,3.1705,157.67,157.63,5.8001]
[1727370568448,15.24,157.67,157.63,2.629]
[1727370568955,15.24,157.76,157.54,18.37227067]
[1727370568956,15.24,157.65,157.54,18.37227067]
[1727370569164,15.24,157.65,157.57,2.5554]
[1727370569650,15.24,157.63,157.57,2.5554]
[1727370570357,24.37,157.65,157.57,5.7276]
[1727370571056,3.1714,157.62,157.58,3.172]
[1727370572153,3.1716,157.61,157.58,3.172]
[1727370572354,24.37,157.62,157.57,2.5554]
[1727370572553,3.1723,157.57,157.5,11.93431755]
[1727370572762,24.37,157.61,157.54,3.173]
[1727370572953,24.37,157.61,157.54,3.18320123]
[1727370573153,24.37,157.61,157.51,1.2824]
[1727370573347,24.37,157.61,157.52,5.73802804]
[1727370573558,24.37,157.61,157.53,8.9694644]
[1727370573761,24.37,157.61,157.53,3.23143636]
[1727370573955,24.37,157.61,157.54,3.173]
[1727370574649,3.1723,157.58,157.54,3.173]
[1727370575048,24.37,157.61,157.54,3.173]
[1727370576956,24.37,157.59,157.51,1.2824]
[1727370577154,3.1724,157.57,157.51,1.2824]
[1727370578757,3.1727,157.56,157.51,1.2824]
[1727370578949,24.37,157.59,157.51,1.2824]
[1727370579563,3.1725,157.57,157.53,3.1731]
[1727370579860,24.37,157.59,157.53,3.1731]
[1727370580254,24.37,157.59,157.52,3.1733]
[1727370580952,3.1729,157.55,157.52,3.1733]
[1727370581260,24.37,157.59,157.51,1.2824]
[1727370581561,3.1725,157.57,157.54,3.1729]
[1727370582757,3.1726,157.56,157.54,3.1729]
[1727370583463,3.1726,157.56,157.53,3.1731]
[1727370584064,24.37,157.59,157.52,3.1732]
[1727370584261,24.37,157.59,157.51,1.2824]
[1727370584662,3.1728,157.55,157.52,3.1732]
[1727370586465,3.1726,157.56,157.53,3.173]
[1727370587063,3.1726,157.56,157.51,1.2824]
[1727370587267,24.37,157.59,157.51,1.2824]
[1727370587268,3.1724,157.57,157.51,1.2824]
[1727370587567,3.1724,157.57,157.54,3.1728]
[1727370588263,24.37,157.61,157.5,1.3766]
[1727370588763,3.1724,157.57,157.5,1.3766]
[1727370589766,3.1722,157.58,157.5,1.3766]
[1727370589963,3.13277854,157.68,157.53,24.37]
[1727370590264,3.1711,157.64,157.53,27.51393333]
[1727370590964,27.56122246,157.68,157.6,3.1717]
[1727370591361,27.56122246,157.68,157.6,3.1716]
[1727370591561,3.171,157.64,157.6,3.1716]
[1727370592163,27.56122246,157.68,157.61,3.1714]
[1727370592361,15.23,157.66,157.61,3.1714]
[1727370592566,3.19122246,157.68,157.59,15.23]
[1727370592567,15.23,157.68,157.59,15.23]
[1727370593268,15.23,157.7,157.61,15.23]
[1727370593458,15.23,157.7,157.61,18.38966864]
[1727370594361,15.23,157.7,157.62,1.303]
[1727370594755,3.1702,157.68,157.62,1.303]
[1727370595168,3.1702,157.68,157.62,4.4743]
[1727370595366,3.1704,157.67,157.62,4.4743]
[1727370595565,15.23,157.7,157.62,4.4743]
[1727370595764,15.23,157.7,157.62,1.303]
[1727370596566,3.1707,157.66,157.62,1.303]
[1727370596763,15.23,157.7,157.62,1.303]
[1727370597769,3.1709,157.65,157.62,1.303]
[1727370597969,15.23,157.7,157.62,1.303]
[1727370598370,3.1711,157.63,157.62,1.303]
[1727370598872,3.1719,157.6,157.57,1.2952]
[1727370599177,3.1719,157.6,157.57,5.8274]
[1727370599564,3.1716,157.61,157.57,5.8274]
[1727370599769,3.1716,157.61,157.57,21.0574]
[1727370599964,15.23,157.67,157.57,21.0574]
[1727370600168,15.23,157.67,157.57,17.8851]
[1727370600470,15.23,157.6,157.51,15.23]
[1727370600676,15.23,157.6,157.53,6.31693333]
[1727370601068,15.23,157.6,157.53,3.14393333]
[1727370601476,3.1729,157.55,157.53,3.14393333]
[1727370601668,3.1729,157.55,157.52,3.1733]
[1727370602475,6.341,157.67,157.53,15.23]
[1727370602678,6.341,157.67,157.53,18.47582778]
[1727370602679,15.23,157.63,157.53,18.47582778]
[1727370602972,3.1723,157.58,157.55,3.1727]
[1727370603277,15.23,157.62,157.53,3.24582778]
[1727370603481,3.1726,157.56,157.53,3.1731]
[1727370603668,3.1726,157.56,157.54,3.10811254]
[1727370604177,3.1728,157.55,157.54,3.10811254]
[1727370604368,3.1728,157.55,157.52,3.1733]
[1727370604878,3.1728,157.55,157.53,3.18998013]
[1727370605176,3.1726,157.56,157.53,3.1731]
[1727370605377,15.23,157.62,157.51,15.23]
[1727370605678,15.23,157.6,157.52,3.1733]
[1727370605873,15.23,157.6,157.53,3.23619002]
[1727370606773,15.23,157.6,157.52,3.1733]
[1727370606975,3.1727,157.56,157.53,3.09372024]
[1727370607175,3.1727,157.56,157.53,6.26692024]
[1727370607382,3.1732,157.53,157.49,19.2408]
[1727370607575,15.23,157.58,157.49,19.2408]
[1727370607771,3.19288702,157.72,157.55,15.23]
[1727370607973,15.23,157.66,157.56,2.7076]
[1727370608174,3.1719,157.6,157.56,2.7076]
[1727370608578,3.1719,157.6,157.57,3.1723]
[1727370608878,3.172,157.59,157.56,2.7076]
[1727370609074,15.23,157.63,157.56,2.7076]
[1727370609669,3.1723,157.58,157.56,2.7076]
[1727370609871,15.23,157.62,157.56,2.7076]
[1727370610280,15.23,157.62,157.53,6.2873808]
[1727370610480,21.5706,157.68,157.53,6.2873808]
[1727370610481,15.23,157.6,157.53,6.2873808]
[1727370610678,15.23,157.6,157.53,3.1143808]
[1727370610883,15.23,157.6,157.52,3.1732]
[1727370611087,15.23,157.6,157.5,17.9299]
[1727370611280,15.23,157.64,157.54,15.23]
[1727370611475,15.23,157.64,157.55,3.13373464]
[1727370611874,15.23,157.64,157.55,6.30633464]
[1727370612480,3.1722,157.58,157.55,6.30633464]
[1727370612783,15.23,157.62,157.55,3.13373464]
[1727370612980,3.1725,157.57,157.55,3.13373464]
[1727370613278,15.23,157.62,157.55,6.30643464]
[1727370613489,3.1723,157.58,157.55,6.30643464]
[1727370613684,15.23,157.62,157.55,6.30643464]
[1727370613982,3.1723,157.58,157.55,6.30643464]
[1727370614583,15.23,157.62,157.55,6.30643464]
[1727370615584,3.1727,157.56,157.52,15.23]
[1727370615782,15.23,157.6,157.52,15.23]
[1727370615978,3.1728,157.55,157.5,17.9299]
[1727370616182,15.23,157.58,157.5,17.9299]
[1727370616785,15.23,157.58,157.52,3.1732]
[1727370617286,3.1727,157.56,157.52,3.1732]
[1727370617786,3.1729,157.55,157.5,17.9299]
[1727370618173,15.23,157.6,157.5,17.9299]
[1727370618879,3.1727,157.56,157.52,3.1733]
[1727370619984,3.1727,157.56,157.53,3.23100095]
[1727370620185,3.1724,157.57,157.53,3.23100095]
[1727370620484,15.23,157.6,157.53,6.40410095]
[1727370620683,3.1723,157.58,157.53,3.1731]
[1727370621082,28.50737,157.72,157.56,15.23]
[1727370621284,28.50737,157.72,157.56,18.3555696]
[1727370621285,15.23,157.66,157.56,18.3555696]
[1727370621477,15.23,157.64,157.56,21.5280696]
[1727370621685,3.1715,157.62,157.56,18.3555696]
[1727370622485,3.1715,157.62,157.57,3.1722]
[1727370623290,3.1716,157.61,157.56,21.5280696]
[1727370623493,15.23,157.61,157.5,2.6999]
[1727370623693,15.23,157.61,157.5,17.9299]
[1727370624097,15.23,157.61,157.53,3.173]
[1727370624296,15.23,157.61,157.5,17.9299]
[1727370624692,15.23,157.61,157.52,3.1732]
[1727370624893,3.1725,157.57,157.52,3.1732]
[1727370625193,3.1725,157.57,157.5,17.9299]
[1727370625596,15.23,157.61,157.5,17.9299]
[1727370626386,15.23,157.61,157.52,15.23]
[1727370626591,15.23,157.61,157.53,3.14163324]
[1727370626792,3.1721,157.59,157.55,3.1727]
[1727370627994,3.1728,157.55,157.51,3.1735]
[1727370628190,15.23,157.59,157.5,2.6999]
[1727370629194,15.23,157.6,157.5,17.9299]
[1727370629398,15.23,157.6,157.52,15.23]
[1727370629599,3.1721,157.59,157.55,3.1728]
[1727370629901,15.23,157.6,157.53,3.21219226]
[1727370630404,3.1723,157.58,157.54,3.1729]
[1727370631406,3.1725,157.57,157.54,3.1729]
[1727370632208,3.1726,157.56,157.53,3.1731]
[1727370634400,15.23,157.58,157.52,3.1733]
[1727370634800,15.23,157.58,157.5,2.6999]
[1727370635099,3.1727,157.56,157.53,3.1731]
[1727370635701,3.1728,157.55,157.52,3.1733]
[1727370636102,3.1731,157.54,157.5,5.8736]
[1727370636304,15.23,157.56,157.5,2.6999]
[1727370637211,3.1729,157.55,157.51,3.1735]
[1727370638212,6.3428,157.62,157.5,5.8736]
[1727370638515,15.23,157.54,157.5,5.8736]
[1727370638815,18.403,157.54,157.5,5.8736]
[1727370639613,18.403,157.54,157.51,3.1735]
[1727370639810,3.173,157.54,157.51,3.1735]
[1727370640410,15.23,157.6,157.51,15.23]
[1727370640612,15.23,157.62,157.53,15.23]
[1727370640915,15.23,157.62,157.53,18.35711694]
[1727370641121,3.1721,157.59,157.53,18.35711694]
[1727370641416,3.1721,157.59,157.51,1.3393]
[1727370641417,15.23,157.6,157.51,16.5693]
[1727370641612,3.1725,157.57,157.51,16.5693]
[1727370641919,15.23,157.56,157.52,5.75402511]
[1727370642111,15.23,157.56,157.53,5.75402511]
[1727370642308,3.1728,157.55,157.52,3.1732]
[1727370643618,15.23,157.56,157.47,58.83333243]
[1727370643818,15.23,157.56,157.48,6.2038266]
[1727370644018,3.1728,157.55,157.51,3.1734]
[1727370644520,3.173,157.54,157.51,3.1734]
[1727370644818,15.23,157.54,157.47,61.48413243]
[1727370645120,3.1733,157.53,157.49,6.203752]
[1727370645321,15.23,157.56,157.47,61.48413243]
[1727370645516,15.23,157.56,157.48,6.20355519]
[1727370645714,3.1729,157.55,157.47,76.71413243]
[1727370645912,15.23,157.56,157.48,6.20352831]
[1727370646120,15.23,157.54,157.47,61.48413243]
[1727370646322,15.23,157.54,157.48,6.20330863]
[1727370646619,15.23,157.54,157.49,3.1739]
[1727370647017,18.4031,157.54,157.49,3.1739]
[1727370647217,3.1731,157.54,157.5,3.1737]
[1727370649424,15.23,157.58,157.49,15.23]
[1727370650025,3.1727,157.56,157.52,3.1732]
[1727370650528,3.1728,157.55,157.52,3.1732]
[1727370652528,3.1726,157.56,157.53,3.173]
[1727370652917,15.23,157.6,157.51,15.23]
[1727370653217,3.1722,157.58,157.55,3.1726]
[1727370654218,3.1724,157.57,157.55,3.1726]
[1727370655524,3.1724,157.57,157.54,3.1729]
[1727370656227,15.23,157.58,157.49,15.23]
[1727370656825,3.1727,157.56,157.53,3.1731]
[1727370657531,3.1728,157.55,157.53,3.1731]
[1727370657733,15.23,157.58,157.49,15.23]
[1727370658428,3.173,157.54,157.51,3.1734]
[1727370658623,15.23,157.58,157.51,3.1734]
[1727370658826,15.23,157.56,157.48,1.2724]
[1727370659032,3.1733,157.53,157.5,3.1736]
[1727370659531,3.1733,157.53,157.51,3.1736]
[1727370659732,3.173,157.54,157.51,3.1736]
[1727370659932,3.173,157.54,157.48,1.2724]
[1727370660429,15.23,157.58,157.49,15.23]
[1727370660828,15.23,157.58,157.52,3.1732]
[1727370661029,3.1729,157.55,157.52,3.1732]
[1727370661431,3.1723,157.58,157.53,3.21300806]
[1727370661731,15.23,157.61,157.5,15.23]
[1727370661924,15.23,157.59,157.5,15.23]